{"text_format":"1","workbook":"xlsx","n_sheets":3,"sheets":["Notice d'accompagnement","Simulateur 2023 bis","Données"],"not_rendered":{"charts":0,"images":8,"macros":1,"external_links":0,"defined_names":0,"comments":0,"pivot_tables":0},"unopened":[],"bounds":{"document_bytes":16777216,"sheet_cells":100000,"rows_first":2000,"rows_last":500,"rows_between":2000,"halvings":0,"cell_chars":16384,"cell_head_chars":4096},"cells_cut":0,"cells_raw":0,"read":"whole","date_system":"1900"}

{"sheet":"Notice d'accompagnement","index":0,"n_rows":87,"n_cols":14,"rows_kept":87,"cut":false,"hidden":false,"merged":[[18,5,20,9],[18,10,20,13],[0,3,0,14],[1,3,1,14],[2,3,2,14],[3,3,3,14],[4,3,4,14],[8,4,8,13],[9,4,10,13],[12,5,13,9],[12,10,13,13],[15,5,16,9],[15,10,16,13],[64,5,64,6],[64,7,64,8],[64,9,64,11],[22,5,22,9],[24,3,24,14],[28,4,28,13],[29,4,30,13],[38,4,38,11],[44,4,44,11],[46,4,46,11],[48,3,48,14],[52,4,52,13],[54,4,55,13],[56,4,56,13],[66,4,66,12],[67,4,67,11],[72,4,72,13],[74,4,74,13],[81,5,81,6],[81,7,81,8],[81,9,81,11],[86,4,86,12],[82,5,82,6],[82,9,82,11],[83,5,83,6],[83,7,83,8],[83,9,83,11],[84,5,84,6],[84,7,84,8],[84,9,84,11]]}
[null,null,null,"Notice d'accompagnement"]
[null,null,null,"         Qu'est ce qu'une expression tarifaire ?"]
[null,null,null,"         Comment remplir le simulateur de tarifs ?"]
[null,null,null,"         Comment optimiser le choix de votre expression tarifaire ?"]
[null,null,null,"         Au final, que va payer mon salarié ?"]
[]
[]
[]
[null,null,null,null,"Qu'est ce qu'une expression tarifaire ?"]
[null,null,null,null,"Une expression tarifaire permet d'exprimer le tarif selon la ou les personnes à assurer.  \nNotre produit vous offre le choix de sélectionner l'expression de tarif la plus adaptée à la situation de vos collaborateurs. Nous vous proposons 4 expressions différentes. "]
[]
[]
[null,null,null,null,"Adulte","Le tarif est appliqué pour chaque bénéficiaire selon son statut : \"adulte\" ou \"enfant\"",null,null,null,null,"Exemple : 1 salarié avec conjoint et 1 enfant\nsoit 2 cotisations \"adulte\" et 1 cotisation \"enfant\""]
[null,null,null,null,"Enfant"]
[]
[null,null,null,null,"Isolé","L'un des 2 tarifs est appliqué au salarié selon le nombre d'ayant(s) droit* inscrit(s) au contrat",null,null,null,null,"Exemples : \n- 1 salarié seul paiera le tarif \"isolé\"\n- 1 salarié en couple ou avec 1 enfant paiera le tarif \"famille\"\n"]
[null,null,null,null,"Famille"]
[]
[null,null,null,null,"Solo","L’un des 3 tarifs est appliqué au salarié selon le nombre d’ayant(s) droit* inscrit(s) au contrat.\n",null,null,null,null,"Ainsi s’il est :\n- seul (sans ayant droit*), il paiera le tarif dit « Solo »\n- en couple ou seul avec un enfant, il paiera le tarif dit « Duo »\n- en couple avec au moins 1 enfant ou seul avec au moins 2 enfants, il paiera le tarif dit « Tribu »"]
[null,null,null,null,"Duo"]
[null,null,null,null,"Tribu"]
[]
[null,null,null,null,"Unique","Le même tarif est appliqué à tous les salariés de l’entreprise quelle que soit la composition familiale de leur foyer."]
[]
[null,null,null,"* désigne le conjoint de l’adhérent bénéficiant d’un régime de Sécurité sociale et/ou les enfants à la charge de l’adhérent ou de son conjoint."]
[]
[]
[]
[null,null,null,null,"Comment remplir le simulateur de tarifs ?"]
[null,null,null,null,"\nPrenons l'exemple d'une agence composée de 3 salariés âgés en moyenne de 40 ans et affiliés au \"régime général\". \nL'agent général décide de :\n-  souscrire à la \"Base améliorée 1\"\n-  couvrir les ayants droit* des salariés à titre \"obligatoire\"**\n-  participer à hauteur de 50% au titre de la participation employeur."]
[]
[]
[null,null,null,null,"Le premier salarié est célibataire"]
[null,null,null,null,"Le deuxième salarié :  sans conjoint avec 1 enfant à assurer"]
[null,null,null,null,"Le troisième salarié :   avec conjoint et 4 enfants"]
[]
[null,null,null,null,"Nombre de salariés couverts",null,null,null,null,null,null,null,null,3]
[]
[null,null,null,null,"Dont nombre de salariés couverts seuls (sans ayant droit*)",null,null,null,null,null,null,null,null,1]
[]
[null,null,null,null,"Nombre de conjoints à assurer",null,null,null,null,null,null,null,null,1]
[]
[null,null,null,null,"Nombre d'enfants à assurer (dans la limite de 2 enfants par salarié puisqu'ils bénéficient de la gratuite au-delà)",null,null,null,null,null,null,null,null,"1+2 soit 3"]
[]
[null,null,null,null,"Nombre de salariés couverts avec au moins 2 ayants droit* (\"adulte\" ou \"enfant\")",null,null,null,null,null,null,null,null,1]
[]
[null,null,null,null,"Nombre de salariés avec 1 seul ayant droit* à couvrir (\"adulte\" ou \"enfant\")",null,null,null,null,null,null,null,null,1]
[]
[null,null,null,"** A titre obligatoire, vous financez pour partie la couverture de la base des ayants droit*. A l'inverse, lorsque vous couvrez les ayants droit* à titre facultatif, les garanties de ces derniers sont financées entièrement par le salarié."]
[]
[]
[]
[null,null,null,null,"Comment optimiser le choix de votre expression tarifaire ?"]
[]
[null,null,null,null,"Une fois les données renseignées,  l'outil affiche la cotisation employeur au niveau de la ligne \"Part Employeur\". \nCela vous permet de choisir l'expression tarifaire qui sera la plus optimisée en fonction de la couverture au moment de la souscription. \n"]
[]
[null,null,null,null,"Reprenons l'exemple de l'agence composée de 3 salariés âgés en moyenne de 40 ans et affiliés au \"régime général\". \nL'agent général décide de :\n-  souscrire à la \"Base améliorée 1\"\n-  couvrir les ayants droit* des salariés à titre \"obligatoire\"**\n-  participer à hauteur de 50% au titre de la participation employeur."]
[]
[null,null,null,null,"Le premier salarié est célibataire"]
[null,null,null,null,"Le deuxième salarié :  sans conjoint avec 1 enfant à assurer"]
[null,null,null,null,"Le troisième salarié :   avec conjoint et 4 enfants"]
[]
[]
[null,null,null,null,null,"Adulte","Enfant","Isolé","Famille","Solo","Duo","Tribu","Unique"]
[null,null,null,null,"Part Employeur",183.06,null,171.74,null,167.63,null,null,182.54]
[null,null,null,null,"par mois"]
[null,null,null,null,"Au regard de la composition familiale de vos collaborateurs d'agence, vous gagnez à souscrire l'offre avec l'expression tarifaire \"Solo-Duo-Tribu\""]
[]
[]
[]
[]
[]
[null,null,null,null,"Au final, que va payer mon salarié ?"]
[]
[null,null,null,null,"Vous retrouvez au niveau de la ligne \"Part salarié\", la cotisation des salariés pour la garantie de base (c’est-à-dire sans les éventuelles \"options\" qu'ils auront choisies après votre souscription au contrat). La cotisation varie selon la situation familiale de chaque collaborateur d'agence. "]
[null,null,null,null,"Si l'on reprend l'exemple proposé :"]
[]
[null,null,null,null,null,"Adulte","Enfant","Isolé","Famille","Solo","Duo","Tribu","Unique"]
[null,null,null,null,"Part Salarié",30.851999999999997,19.88,30.85,70.45,30.85,56.9,79.87,60.85]
[null,null,null,null,"par mois"]
[]
[null,null,null,null,null,"Adulte, Enfant",null,"Isolé, Famille",null,"Solo, Duo, Tribu",null,null,"Unique"]
[null,null,null,null,"1er salarié\n(Célibataire)","1 Adulte soit 30,85€/ mois",null,"= isolé soit 30,85 €/ mois",null,"= solo soit 30,85 €/ mois",null,null,"60,85 €/ mois"]
[null,null,null,null,"2ème salarié\n(sans conjoint et 1 enfant)","1 Adulte + 1 enfant soit 50,73€/ mois",null,"= famille soit 70,45 €/ mois",null,"= Duo soit 56,90 €/ mois",null,null,"60,85 €/ mois"]
[null,null,null,null,"3ème salarié\n(1 conjoint et 4 enfants)","2 adultes + 2 enfants soit 101,46 €/ mois",null,"= famille soit 70,45 €/ mois",null,"= Tribu soit 79,87 €/ mois",null,null,"60,85 €/ mois"]
[]
[null,null,null,null,"Ainsi, si l'agent général séléctionne l'expression \"solo, duo, tribu\", le salarié bénéficiera du tarif associé à l'expression sélectionnée soit \"solo, duo, tribu\"."]

{"sheet":"Simulateur 2023 bis","index":1,"n_rows":34,"n_cols":25,"rows_kept":34,"cut":false,"hidden":false,"merged":[[5,4,5,24],[19,4,19,5],[28,30,28,31],[24,32,25,33],[28,32,29,32],[28,33,29,33],[16,4,16,5],[29,30,29,31],[7,4,7,10],[7,14,7,23],[29,17,29,19],[8,4,8,23],[33,32,35,32],[33,33,35,33],[31,30,31,31],[32,30,32,31],[33,30,33,31],[34,30,34,31],[35,30,35,31],[30,30,30,31],[30,32,31,32],[30,33,31,33],[11,14,12,21],[16,14,17,21],[25,4,25,24],[28,7,28,8],[28,9,28,10],[29,7,29,10],[28,11,28,12],[29,11,29,14],[28,15,28,16],[29,15,29,16],[30,15,30,16],[30,11,30,12],[33,3,39,25],[30,13,30,14],[31,7,31,8],[21,4,22,9],[9,7,9,8],[10,4,10,6],[23,4,23,5],[13,4,13,5],[30,7,30,8],[30,9,30,10],[19,14,20,22],[22,14,23,21]]}
[]
[]
[]
[]
[]
[null,null,null,null," Simulateur de tarifs du Personnel des agences d'assurance (offre nationale) - Tarifs 2023"]
[]
[null,null,null,null,"Saisir les données de votre simulation tarifaire",null,null,null,null,null,null,null,null,null,"Saisir les données sur les assurés à couvrir",null,null,null,null,null,null,null,null,null,"Aide"]
[null,null,null,null,"Il est nécessaire de renseigner l'ensemble des champs grisés"]
[null,null,null,null,"Quel est le régime de vos salariés ?",null,null,null,null,null,null,null,null,null,"Nombre de salariés couverts"]
[]
[null,null,null,null,null,null,null,null,null,null,null,null,null,null,"Dont nombre de salarié couverts seuls (sans ayant droit)"]
[null,null,null,null,"Vous souhaitez couvrir vos salariés à hauteur de la"]
[]
[null,null,null,null,null,null,null,null,null,null,null,null,null,null,"Nombre de conjoints à assurer",null,null,null,null,null,null,null,null,null,"Aide"]
[null,null,null,null,"Quel est l'âge moyen de vos salariés à couvrir ?",null,null,null,null,"Aide"]
[null,null,null,null,null,null,null,null,null,null,null,null,null,null,"Nombre d'enfants (1) à assurer (dans la limite de 2 enfants par salarié puisqu'ils bénéficient de la gratuite au-delà)"]
[]
[null,null,null,null,"Comment couvrir les ayants droit ?",null,null,"Aide"]
[null,null,null,null,null,null,null,null,null,null,null,null,null,null,"Nombre de salarié couvert avec au moins 2 ayants droit (adulte ou enfant)"]
[]
[null,null,null,null,"A quelle hauteur souhaitez-vous financer la couverture de vos salariés ? (50 % minimum)"]
[null,null,null,null,null,null,null,null,null,null,null,null,null,null,"Nombre de salarié avec 1 seul ayant droit à couvrir (adulte ou enfant)"]
[]
[]
[null,null,null,null,"Tarification de la formule de base du contrat santé - Cotisations TTC mensuelle"]
[]
[]
[null,null,null,null,null,null,null,"Adulte",null,"Enfant",null,"Isolé",null,"Famille",null,"Unique",null,"Solo","Duo","Tribu"]
[null,null,null,null,null,"Part Employeur",null,{"$f":"IF(E11=\"Régime général\",Données!AC11,Données!AC58)","v":0},null,null,null,{"$f":"IF(E11=\"Régime général\",Données!AC13,Données!AC60)","v":0},null,null,null,{"$f":"IF(E11=\"Régime général\",Données!AC15,Données!AC62)","v":"Impossible"},null,{"$f":"IF(E11=\"Régime général\",Données!AC16,Données!AC63)","v":0}]
[null,null,null,null,null,"Part Salarié",null,{"$f":"IF(AND(E11=\"Régime général\",E20=\"Obligatoire\"),Données!AE11,IF(AND(E11=\"Régime général\",E20=\"Facultative\"),Données!AF11,IF(AND(E11=\"Régime local - Alsace Moselle\",E20=\"Obligatoire\"),Données!AE58,IF(AND(E11=\"Régime local - Alsace Moselle\",E20=\"Facultative\"),Données!AF58))))","v":false},null,{"$f":"IF(AND(E11=\"Régime général\",E20=\"Obligatoire\"),Données!AE12,IF(AND(E11=\"Régime général\",E20=\"Facultative\"),Données!AF12,IF(AND(E11=\"Régime local - Alsace Moselle\",E20=\"Obligatoire\"),Données!AE59,IF(AND(E11=\"Régime local - Alsace Moselle\",E20=\"Facultative\"),Données!AF59))))","v":false},null,{"$f":"IF(AND(E11=\"Régime général\",E20=\"Obligatoire\"),Données!AE13,IF(AND(E11=\"Régime général\",E20=\"Facultative\"),Données!AF13,IF(AND(E11=\"Régime local - Alsace Moselle\",E20=\"Obligatoire\"),Données!AE60,IF(AND(E11=\"Régime local - Alsace Moselle\",E20=\"Facultative\"),Données!AF60))))","v":false},null,{"$f":"IF(AND(E11=\"Régime général\",E20=\"Obligatoire\"),Données!AE14,IF(AND(E11=\"Régime général\",E20=\"Facultative\"),Données!AF14,IF(AND(E11=\"Régime local - Alsace Moselle\",E20=\"Obligatoire\"),Données!AE61,IF(AND(E11=\"Régime local - Alsace Moselle\",E20=\"Facultative\"),Données!AF61))))","v":false},null,{"$f":"IF(E11=\"Régime général\",Données!AE15,Données!AE62)","v":"impossible"},null,{"$f":"IF(AND(E11=\"Régime général\",E20=\"Obligatoire\"),Données!AE16,IF(AND(E11=\"Régime général\",E20=\"Facultative\"),Données!AF16,IF(AND(E11=\"Régime local - Alsace Moselle\",E20=\"Obligatoire\"),Données!AE63,IF(AND(E11=\"Régime local - Alsace Moselle\",E20=\"Facultative\"),Données!AF63))))","v":false},{"$f":"IF(AND(E11=\"Régime général\",E20=\"Obligatoire\"),Données!AE17,IF(AND(E11=\"Régime général\",E20=\"Facultative\"),Données!AF17,IF(AND(E11=\"Régime local - Alsace Moselle\",E20=\"Obligatoire\"),Données!AE64,IF(AND(E11=\"Régime local - Alsace Moselle\",E20=\"Facultative\"),Données!AF64))))","v":false},{"$f":"IF(AND(E11=\"Régime général\",E20=\"Obligatoire\"),Données!AE18,IF(AND(E11=\"Régime général\",E20=\"Facultative\"),Données!AF18,IF(AND(E11=\"Régime local - Alsace Moselle\",E20=\"Obligatoire\"),Données!AE65,IF(AND(E11=\"Régime local - Alsace Moselle\",E20=\"Facultative\"),Données!AF65))))","v":false}]
[null,null,null,null,null,"Et pour le conjoint ",null,{"$f":"IF(AND(E11=\"Régime général\",E20=\"Obligatoire\"),Données!AG11,IF(AND(E11=\"Régime général\",E20=\"Facultative\"),Données!AH11,IF(AND(E11=\"Régime local - Alsace Moselle\",E20=\"Obligatoire\"),Données!AG58,IF(AND(E11=\"Régime local - Alsace Moselle\",E20=\"Facultative\"),Données!AH58))))","v":false}]
[]
[null,null,null,"(1) sont considérés comme tels les enfants à charge de l’adhérent ou de son conjoint, à condition toutefois :\n- qu’ils soient à leur charge au sens de la Sécurité sociale ;\n- ou qu’ils aient moins de 28 ans, et poursuivent des études scolaires ou universitaires, et soient couverts par un régime de Sécurité sociale, et sous réserve qu’ils n’exercent pas une profession à temps complet ;\n- ou qu’ils aient moins de 28 ans et qu’ils soient en recherche d'emploi (primo demandeur d’emploi), inscrits à Pôle emploi et rattachés au foyer fiscal du parent assuré au titre du contrat ;\n- ou qu’ils aient moins de 26 ans, et qu’ils soient en apprentissage ou entrés dans le cadre des contrats de formation, jusqu’au terme de leur cursus, et perçoivent dans tous les cas une rémunération maximum de 55 % du Smic (salaire minimum interprofessionnel\nde croissance) ;\n- ou quel que soit leur âge, s’ils perçoivent l’allocation aux adultes handicapés ou l’allocation d’éducation de l’enfant handicapé. L’assureur se réserve le droit de demander des justificatifs."]

{"sheet":"Données","index":2,"n_rows":93,"n_cols":34,"rows_kept":93,"cut":false,"hidden":true,"merged":[[7,28,7,31],[10,28,11,28],[12,28,13,28],[17,21,17,22],[10,21,10,22],[11,21,11,22],[15,28,17,28],[12,21,12,22],[13,21,13,22],[14,21,14,22],[15,21,15,22],[16,21,16,22],[8,24,8,27],[8,29,9,29],[64,13,64,17],[74,13,74,17],[84,13,84,17],[37,13,37,17],[0,1,0,4],[17,13,17,17],[27,13,27,17],[3,13,3,16],[50,13,50,16],[54,13,54,16],[5,7,6,7],[12,3,12,4],[13,3,13,4],[7,13,7,16],[62,21,62,22],[62,28,64,28],[63,21,63,22],[64,21,64,22],[59,21,59,22],[59,28,60,28],[60,21,60,22],[61,21,61,22],[54,28,54,31],[57,21,57,22],[57,28,58,28],[58,21,58,22],[55,29,56,29]]}
[null,"Menu déroulant et formules"]
[]
[null,"Régime général"]
[null,"Régime local - Alsace Moselle",null,null,null,null,null,null,null,null,null,null,null,"Régime général"]
[]
[null,"Base conventionnelle"]
[null,"Base améliorée 1"]
[null,"Base améliorée 2",null,null,null,null,null,null,null,null,null,null,null,"Base conventionnelle",null,null,null,null,null,null,null,null,null,null,null,null,null,null,"Simulations"]
[null,"Base améliorée 3",null,null,null,null,null,null,null,null,null,null,null,"ADULTE",1.3299999999999999E-2,null,null,null,null,null,null,null,null,null,"EMPLOYEUR",null,null,null,"PART","part employeur par tête","Salarié","Salarié","CONJOINT"]
[null,null,null,null,null,null,null,null,null,null,null,null,null,"ENFANT",8.6999999999999994E-3,null,null,null,null,null,null,null,null,"Tarif",null,"€","taux partic","Employeur","EMPLOYEUR",null,"Obligatoire","Facultatif","obligatoire","facultatif"]
[null,null,null,null,null,null,null,null,null,null,null,null,null,"ISOLE",1.3299999999999999E-2,null,null,null,null,null,null,"ADULTE",null,{"$f":"IF('Simulateur 2023 bis'!$E$14=\"Base conventionnelle\",VLOOKUP(V11,Données!$N$8:$Q$16,2,FALSE),IF(Données!$D$15=\"21\",VLOOKUP(V11,Données!$N$18:$R$26,2,FALSE),IF(Données!$D$15=\"22\",VLOOKUP(V11,Données!$N$18:$R$26,3,FALSE),IF(Données!$D$15=\"23\",VLOOKUP(V11,Données!$N$18:$R$26,4,FALSE),IF(Données!$D$15=\"24\",VLOOKUP(V11,Données!$N$18:$R$26,5,FALSE),IF(Données!$D$15=\"31\",VLOOKUP(V11,Données!$N$28:$R$36,2,FALSE),IF(Données!$D$15=\"32\",VLOOKUP(V11,Données!$N$28:$R$36,3,FALSE),IF(Données!$D$15=\"33\",VLOOKUP(V11,Données!$N$28:$R$36,4,FALSE),IF(Données!$D$15=\"34\",VLOOKUP(V11,Données!$N$28:$R$36,5,FALSE),IF(Données!$D$15=\"41\",VLOOKUP(V11,Données!$N$38:$R$46,2,FALSE),IF(Données!$D$15=\"42\",VLOOKUP(V11,Données!$N$38:$R$46,3,FALSE),IF(Données!$D$15=\"43\",VLOOKUP(V11,Données!$N$38:$R$46,4,FALSE),IF(Données!$D$15=\"44\",VLOOKUP(V11,Données!$N$38:$R$46,5,FALSE))))))))))))))","v":false},{"$f":"IF('Simulateur 2023 bis'!$E$20=\"Obligatoire\",(('Simulateur 2023 bis'!$X$10+'Simulateur 2023 bis'!$X$15)*X11),('Simulateur 2023 bis'!$X$10*X11))","v":0},{"$f":"Y11*Données!$C$26","v":0},{"$f":"Y11*Données!$C$26*'Simulateur 2023 bis'!$E$24","v":0},{"$f":"AA11","v":0},{"$f":"AB11+AB12","v":0},{"$f":"$X11*'Simulateur 2023 bis'!$E$24*$C$26","v":0},{"$f":"($X11*$C$26)-$AD11","v":0},{"$f":"($X11*$C$26)-$AD11","v":0},{"$f":"AE11","v":0},{"$f":"($X11*$C$26)","v":0}]
[null,null,null,null,null,null,null,null,null,null,null,null,null,"FAMILLE",3.3399999999999999E-2,null,null,null,null,null,null,"ENFANT",null,{"$f":"IF('Simulateur 2023 bis'!$E$14=\"Base conventionnelle\",VLOOKUP(V12,Données!$N$8:$Q$16,2,FALSE),IF(Données!$D$15=\"21\",VLOOKUP(V12,Données!$N$18:$R$26,2,FALSE),IF(Données!$D$15=\"22\",VLOOKUP(V12,Données!$N$18:$R$26,3,FALSE),IF(Données!$D$15=\"23\",VLOOKUP(V12,Données!$N$18:$R$26,4,FALSE),IF(Données!$D$15=\"24\",VLOOKUP(V12,Données!$N$18:$R$26,5,FALSE),IF(Données!$D$15=\"31\",VLOOKUP(V12,Données!$N$28:$R$36,2,FALSE),IF(Données!$D$15=\"32\",VLOOKUP(V12,Données!$N$28:$R$36,3,FALSE),IF(Données!$D$15=\"33\",VLOOKUP(V12,Données!$N$28:$R$36,4,FALSE),IF(Données!$D$15=\"34\",VLOOKUP(V12,Données!$N$28:$R$36,5,FALSE),IF(Données!$D$15=\"41\",VLOOKUP(V12,Données!$N$38:$R$46,2,FALSE),IF(Données!$D$15=\"42\",VLOOKUP(V12,Données!$N$38:$R$46,3,FALSE),IF(Données!$D$15=\"43\",VLOOKUP(V12,Données!$N$38:$R$46,4,FALSE),IF(Données!$D$15=\"44\",VLOOKUP(V12,Données!$N$38:$R$46,5,FALSE))))))))))))))","v":false},{"$f":"X12*'Simulateur 2023 bis'!$X$17","v":0},{"$f":"Y12*Données!$C$26","v":0},{"$f":"Y12*Données!$C$26*'Simulateur 2023 bis'!$E$24","v":0},{"$f":"IF('Simulateur 2023 bis'!$E$20=\"Obligatoire\",AA12,0)","v":0},null,{"$f":"$X12*'Simulateur 2023 bis'!$E$24*$C$26","v":0},{"$f":"($X12*$C$26)-$AD12","v":0},{"$f":"($X12*$C$26)","v":0},null,"si néant si pas d'enfant : SI(Z12>0;(Y12*$C$26);\"néant\")"]
[null,"Jusque 35 ans",null,{"$f":"IF('Simulateur 2023 bis'!E14=\"Base conventionnelle\",1,IF('Simulateur 2023 bis'!E14=\"Base améliorée 1\",2,IF('Simulateur 2023 bis'!E14=\"Base améliorée 2\",3,IF('Simulateur 2023 bis'!E14=\"Base améliorée 3\",4))))","v":false},null,null,null,null,null,null,null,null,null,"UNIQUE",2.7E-2,null,null,null,null,null,null,"ISOLE",null,{"$f":"IF('Simulateur 2023 bis'!$E$14=\"Base conventionnelle\",VLOOKUP(V13,Données!$N$8:$Q$16,2,FALSE),IF(Données!$D$15=\"21\",VLOOKUP(V13,Données!$N$18:$R$26,2,FALSE),IF(Données!$D$15=\"22\",VLOOKUP(V13,Données!$N$18:$R$26,3,FALSE),IF(Données!$D$15=\"23\",VLOOKUP(V13,Données!$N$18:$R$26,4,FALSE),IF(Données!$D$15=\"24\",VLOOKUP(V13,Données!$N$18:$R$26,5,FALSE),IF(Données!$D$15=\"31\",VLOOKUP(V13,Données!$N$28:$R$36,2,FALSE),IF(Données!$D$15=\"32\",VLOOKUP(V13,Données!$N$28:$R$36,3,FALSE),IF(Données!$D$15=\"33\",VLOOKUP(V13,Données!$N$28:$R$36,4,FALSE),IF(Données!$D$15=\"34\",VLOOKUP(V13,Données!$N$28:$R$36,5,FALSE),IF(Données!$D$15=\"41\",VLOOKUP(V13,Données!$N$38:$R$46,2,FALSE),IF(Données!$D$15=\"42\",VLOOKUP(V13,Données!$N$38:$R$46,3,FALSE),IF(Données!$D$15=\"43\",VLOOKUP(V13,Données!$N$38:$R$46,4,FALSE),IF(Données!$D$15=\"44\",VLOOKUP(V13,Données!$N$38:$R$46,5,FALSE))))))))))))))","v":false},{"$f":"IF('Simulateur 2023 bis'!$E$20=\"Obligatoire\",(X13*'Simulateur 2023 bis'!$X$12),(X13*'Simulateur 2023 bis'!$X$10))","v":0},{"$f":"Y13*Données!$C$26","v":0},{"$f":"Y13*Données!$C$26*'Simulateur 2023 bis'!$E$24","v":0},{"$f":"AA13","v":0},{"$f":"AB13+AB14","v":0},{"$f":"$X13*'Simulateur 2023 bis'!$E$24*$C$26","v":0},{"$f":"($X13*$C$26)-$AD13","v":0},{"$f":"($X13*$C$26)-$AD13","v":0}]
[null,"De 36 à 45 ans",null,{"$f":"IF('Simulateur 2023 bis'!E17=\"Jusque 35 ans\",1,IF('Simulateur 2023 bis'!E17=\"De 36 à 45 ans\",2,IF('Simulateur 2023 bis'!E17=\"De 46 à 55 ans\",3,IF('Simulateur 2023 bis'!E17=\"Plus de 56 ans\",4))))","v":false},null,null,null,null,null,null,null,null,null,"SOLO",1.3299999999999999E-2,null,null,null,null,null,null,"FAMILLE",null,{"$f":"IF('Simulateur 2023 bis'!$E$14=\"Base conventionnelle\",VLOOKUP(V14,Données!$N$8:$Q$16,2,FALSE),IF(Données!$D$15=\"21\",VLOOKUP(V14,Données!$N$18:$R$26,2,FALSE),IF(Données!$D$15=\"22\",VLOOKUP(V14,Données!$N$18:$R$26,3,FALSE),IF(Données!$D$15=\"23\",VLOOKUP(V14,Données!$N$18:$R$26,4,FALSE),IF(Données!$D$15=\"24\",VLOOKUP(V14,Données!$N$18:$R$26,5,FALSE),IF(Données!$D$15=\"31\",VLOOKUP(V14,Données!$N$28:$R$36,2,FALSE),IF(Données!$D$15=\"32\",VLOOKUP(V14,Données!$N$28:$R$36,3,FALSE),IF(Données!$D$15=\"33\",VLOOKUP(V14,Données!$N$28:$R$36,4,FALSE),IF(Données!$D$15=\"34\",VLOOKUP(V14,Données!$N$28:$R$36,5,FALSE),IF(Données!$D$15=\"41\",VLOOKUP(V14,Données!$N$38:$R$46,2,FALSE),IF(Données!$D$15=\"42\",VLOOKUP(V14,Données!$N$38:$R$46,3,FALSE),IF(Données!$D$15=\"43\",VLOOKUP(V14,Données!$N$38:$R$46,4,FALSE),IF(Données!$D$15=\"44\",VLOOKUP(V14,Données!$N$38:$R$46,5,FALSE))))))))))))))","v":false},{"$f":"X14*('Simulateur 2023 bis'!$X$10-'Simulateur 2023 bis'!$X$12)","v":0},{"$f":"Y14*Données!$C$26","v":0},{"$f":"Y14*Données!$C$26*'Simulateur 2023 bis'!$E$24","v":0},{"$f":"IF('Simulateur 2023 bis'!$E$20=\"Obligatoire\",AA14,0)","v":0},null,{"$f":"$X14*'Simulateur 2023 bis'!$E$24*$C$26","v":0},{"$f":"($X14*$C$26)-$AD14","v":0},{"$f":"(X13*$C$26)-(X13*$C$26*'Simulateur 2023 bis'!$E$24)+((Données!X14-Données!X13)*Données!$C$26)","v":0}]
[null,"De 46 à 55 ans",null,{"$f":"CONCATENATE($D$13,$D$14)","v":"FAUXFAUX"},null,null,null,null,null,null,null,null,null,"DUO",2.6800000000000001E-2,null,null,null,null,null,null,"UNIQUE",null,{"$f":"IF('Simulateur 2023 bis'!$E$14=\"Base conventionnelle\",VLOOKUP(V15,Données!$N$8:$Q$16,2,FALSE),IF(Données!$D$15=\"21\",VLOOKUP(V15,Données!$N$18:$R$26,2,FALSE),IF(Données!$D$15=\"22\",VLOOKUP(V15,Données!$N$18:$R$26,3,FALSE),IF(Données!$D$15=\"23\",VLOOKUP(V15,Données!$N$18:$R$26,4,FALSE),IF(Données!$D$15=\"24\",VLOOKUP(V15,Données!$N$18:$R$26,5,FALSE),IF(Données!$D$15=\"31\",VLOOKUP(V15,Données!$N$28:$R$36,2,FALSE),IF(Données!$D$15=\"32\",VLOOKUP(V15,Données!$N$28:$R$36,3,FALSE),IF(Données!$D$15=\"33\",VLOOKUP(V15,Données!$N$28:$R$36,4,FALSE),IF(Données!$D$15=\"34\",VLOOKUP(V15,Données!$N$28:$R$36,5,FALSE),IF(Données!$D$15=\"41\",VLOOKUP(V15,Données!$N$38:$R$46,2,FALSE),IF(Données!$D$15=\"42\",VLOOKUP(V15,Données!$N$38:$R$46,3,FALSE),IF(Données!$D$15=\"43\",VLOOKUP(V15,Données!$N$38:$R$46,4,FALSE),IF(Données!$D$15=\"44\",VLOOKUP(V15,Données!$N$38:$R$46,5,FALSE))))))))))))))","v":false},{"$f":"X15*'Simulateur 2023 bis'!$X$10","v":0},{"$f":"Y15*Données!$C$26","v":0},{"$f":"Y15*Données!$C$26*'Simulateur 2023 bis'!$E$24","v":0},{"$f":"IF('Simulateur 2023 bis'!$E$20=\"Obligatoire\",AA15,\"Impossible\")","v":"Impossible"},{"$f":"AB15","v":"Impossible"},{"$f":"$X15*'Simulateur 2023 bis'!$E$24*$C$26","v":0},{"$f":"IF('Simulateur 2023 bis'!$E$20=\"Obligatoire\",(($X15*$C$26)-$AD15),\"impossible\")","v":"impossible"}]
[null,"Plus de 56 ans",null,null,null,null,null,null,null,null,null,null,null,"TRIBU",3.78E-2,null,null,null,null,null,null,"SOLO",null,{"$f":"IF('Simulateur 2023 bis'!$E$14=\"Base conventionnelle\",VLOOKUP(V16,Données!$N$8:$Q$16,2,FALSE),IF(Données!$D$15=\"21\",VLOOKUP(V16,Données!$N$18:$R$26,2,FALSE),IF(Données!$D$15=\"22\",VLOOKUP(V16,Données!$N$18:$R$26,3,FALSE),IF(Données!$D$15=\"23\",VLOOKUP(V16,Données!$N$18:$R$26,4,FALSE),IF(Données!$D$15=\"24\",VLOOKUP(V16,Données!$N$18:$R$26,5,FALSE),IF(Données!$D$15=\"31\",VLOOKUP(V16,Données!$N$28:$R$36,2,FALSE),IF(Données!$D$15=\"32\",VLOOKUP(V16,Données!$N$28:$R$36,3,FALSE),IF(Données!$D$15=\"33\",VLOOKUP(V16,Données!$N$28:$R$36,4,FALSE),IF(Données!$D$15=\"34\",VLOOKUP(V16,Données!$N$28:$R$36,5,FALSE),IF(Données!$D$15=\"41\",VLOOKUP(V16,Données!$N$38:$R$46,2,FALSE),IF(Données!$D$15=\"42\",VLOOKUP(V16,Données!$N$38:$R$46,3,FALSE),IF(Données!$D$15=\"43\",VLOOKUP(V16,Données!$N$38:$R$46,4,FALSE),IF(Données!$D$15=\"44\",VLOOKUP(V16,Données!$N$38:$R$46,5,FALSE))))))))))))))","v":false},{"$f":"IF('Simulateur 2023 bis'!$E$20=\"Obligatoire\",(X16*'Simulateur 2023 bis'!$X$12),(X16*'Simulateur 2023 bis'!$X$10))","v":0},{"$f":"Y16*Données!$C$26","v":0},{"$f":"Y16*Données!$C$26*'Simulateur 2023 bis'!$E$24","v":0},{"$f":"AA16","v":0},{"$f":"AB16+AB17+AB18","v":0},{"$f":"$X16*'Simulateur 2023 bis'!$E$24*$C$26","v":0},{"$f":"(X16*$C$26)-AD16","v":0},{"$f":"(X16*$C$26)-AD16","v":0}]
[null,null,null,null,null,null,null,null,null,null,null,null,null,null,"jusque 35","36-45","46-55","Plus 56 ans",null,null,null,"DUO",null,{"$f":"IF('Simulateur 2023 bis'!$E$14=\"Base conventionnelle\",VLOOKUP(V17,Données!$N$8:$Q$16,2,FALSE),IF(Données!$D$15=\"21\",VLOOKUP(V17,Données!$N$18:$R$26,2,FALSE),IF(Données!$D$15=\"22\",VLOOKUP(V17,Données!$N$18:$R$26,3,FALSE),IF(Données!$D$15=\"23\",VLOOKUP(V17,Données!$N$18:$R$26,4,FALSE),IF(Données!$D$15=\"24\",VLOOKUP(V17,Données!$N$18:$R$26,5,FALSE),IF(Données!$D$15=\"31\",VLOOKUP(V17,Données!$N$28:$R$36,2,FALSE),IF(Données!$D$15=\"32\",VLOOKUP(V17,Données!$N$28:$R$36,3,FALSE),IF(Données!$D$15=\"33\",VLOOKUP(V17,Données!$N$28:$R$36,4,FALSE),IF(Données!$D$15=\"34\",VLOOKUP(V17,Données!$N$28:$R$36,5,FALSE),IF(Données!$D$15=\"41\",VLOOKUP(V17,Données!$N$38:$R$46,2,FALSE),IF(Données!$D$15=\"42\",VLOOKUP(V17,Données!$N$38:$R$46,3,FALSE),IF(Données!$D$15=\"43\",VLOOKUP(V17,Données!$N$38:$R$46,4,FALSE),IF(Données!$D$15=\"44\",VLOOKUP(V17,Données!$N$38:$R$46,5,FALSE))))))))))))))","v":false},{"$f":"X17*'Simulateur 2023 bis'!$X$23","v":0},{"$f":"Y17*'Simulateur 2023 bis'!$X$23*Données!$C$26","v":0},{"$f":"Y17*Données!$C$26*'Simulateur 2023 bis'!$E$24","v":0},{"$f":"IF('Simulateur 2023 bis'!$E$20=\"Obligatoire\",AA17,0)","v":0},null,{"$f":"$X17*'Simulateur 2023 bis'!$E$24*$C$26","v":0},{"$f":"(X17*$C$26)-AD17","v":0},{"$f":"AE16+((X17-X16)*$C$26)","v":0}]
[null,null,null,null,null,null,null,null,null,null,null,null,null,"Base améliorée 1",null,null,null,null,null,null,null,"TRIBU",null,{"$f":"IF('Simulateur 2023 bis'!$E$14=\"Base conventionnelle\",VLOOKUP(V18,Données!$N$8:$Q$16,2,FALSE),IF(Données!$D$15=\"21\",VLOOKUP(V18,Données!$N$18:$R$26,2,FALSE),IF(Données!$D$15=\"22\",VLOOKUP(V18,Données!$N$18:$R$26,3,FALSE),IF(Données!$D$15=\"23\",VLOOKUP(V18,Données!$N$18:$R$26,4,FALSE),IF(Données!$D$15=\"24\",VLOOKUP(V18,Données!$N$18:$R$26,5,FALSE),IF(Données!$D$15=\"31\",VLOOKUP(V18,Données!$N$28:$R$36,2,FALSE),IF(Données!$D$15=\"32\",VLOOKUP(V18,Données!$N$28:$R$36,3,FALSE),IF(Données!$D$15=\"33\",VLOOKUP(V18,Données!$N$28:$R$36,4,FALSE),IF(Données!$D$15=\"34\",VLOOKUP(V18,Données!$N$28:$R$36,5,FALSE),IF(Données!$D$15=\"41\",VLOOKUP(V18,Données!$N$38:$R$46,2,FALSE),IF(Données!$D$15=\"42\",VLOOKUP(V18,Données!$N$38:$R$46,3,FALSE),IF(Données!$D$15=\"43\",VLOOKUP(V18,Données!$N$38:$R$46,4,FALSE),IF(Données!$D$15=\"44\",VLOOKUP(V18,Données!$N$38:$R$46,5,FALSE))))))))))))))","v":false},{"$f":"X18*'Simulateur 2023 bis'!$X$20","v":0},{"$f":"Y18*'Simulateur 2023 bis'!$X$23*Données!$C$26","v":0},{"$f":"Y18*Données!$C$26*'Simulateur 2023 bis'!$E$24","v":0},{"$f":"IF('Simulateur 2023 bis'!$E$20=\"Obligatoire\",AA18,0)","v":0},null,{"$f":"$X18*'Simulateur 2023 bis'!$E$24*$C$26","v":0},{"$f":"(X18*$C$26)-AD18","v":0},{"$f":"AE16+((X18-X16)*$C$26)","v":0}]
[null,null,null,null,null,null,null,null,null,null,null,null,null,"ADULTE",1.5900000000000001E-2,1.7999999999999999E-2,2.4400000000000002E-2,2.8500000000000001E-2]
[null,"Obligatoire",null,null,null,null,null,null,null,null,null,null,null,"ENFANT",1.0200000000000001E-2,1.1599999999999999E-2,1.5699999999999999E-2,1.8499999999999999E-2]
[null,"Facultative",null,null,null,null,null,null,null,null,null,null,null,"ISOLE",1.5900000000000001E-2,1.7999999999999999E-2,2.4400000000000002E-2,2.8500000000000001E-2]
[null,null,null,null,null,null,null,null,null,null,null,null,null,"FAMILLE",3.6200000000000003E-2,4.1099999999999998E-2,5.57E-2,6.5199999999999994E-2,null,null,null,null,null,null,null,"facult"]
[null,null,null,null,null,null,null,null,null,null,null,null,null,"UNIQUE",3.1099999999999999E-2,3.5499999999999997E-2,5.4399999999999997E-2,6.3899999999999998E-2,null,null,null,null,null,null,"salarié","tribu - solo + solo x 100 - participation employeur"]
[null,null,null,null,null,null,null,null,null,null,null,null,null,"SOLO",1.5900000000000001E-2,1.7999999999999999E-2,2.4400000000000002E-2,2.8500000000000001E-2]
[null,null,null,null,null,null,null,null,null,null,null,null,null,"DUO",2.92E-2,3.32E-2,4.4999999999999998E-2,5.28E-2]
[null,"PMSS",3666,null,null,null,null,null,null,null,null,null,null,"TRIBU",4.1000000000000002E-2,4.6600000000000003E-2,6.3E-2,7.3999999999999996E-2]
[null,null,null,null,null,null,null,null,null,null,null,null,null,null,"jusque 35","36-45","46-55","Plus 56 ans"]
[null,"part salarié :",{"$f":"100%-'Simulateur 2023 bis'!E24","v":1},null,null,null,null,null,null,null,null,null,null,"Base améliorée 2","BA2"]
[null,null,null,null,null,null,null,null,null,null,null,null,null,"ADULTE",1.8599999999999998E-2,2.1100000000000001E-2,2.8500000000000001E-2,3.3500000000000002E-2]
[null,null,null,null,null,null,null,null,null,null,null,null,null,"ENFANT",1.2E-2,1.3599999999999999E-2,1.83E-2,2.1600000000000001E-2]
[null,null,null,null,null,null,null,null,null,null,null,null,null,"ISOLE",1.8599999999999998E-2,2.1100000000000001E-2,2.8500000000000001E-2,3.3500000000000002E-2]
[null,null,null,null,null,null,null,null,null,null,null,null,null,"FAMILLE",4.24E-2,4.8099999999999997E-2,6.5199999999999994E-2,7.6499999999999999E-2]
[null,null,null,null,null,null,null,null,null,null,null,null,null,"UNIQUE",3.6600000000000001E-2,4.1599999999999998E-2,6.3799999999999996E-2,7.4899999999999994E-2]
[null,null,null,null,null,null,null,null,null,null,null,null,null,"SOLO",1.8599999999999998E-2,2.1100000000000001E-2,2.8500000000000001E-2,3.3500000000000002E-2]
[null,null,null,null,null,null,null,null,null,null,null,null,null,"DUO",3.4000000000000002E-2,3.8699999999999998E-2,5.2299999999999999E-2,6.1400000000000003E-2]
[null,null,null,null,null,null,null,null,null,null,null,null,null,"TRIBU",4.7899999999999998E-2,5.45E-2,7.3700000000000002E-2,8.6499999999999994E-2]
[]
[null,null,null,null,null,null,null,null,null,null,null,null,null,"Base améliorée 3","BA2"]
[null,null,null,null,null,null,null,null,null,null,null,null,null,"ADULTE",2.5700000000000001E-2,2.92E-2,3.9559999999999998E-2,3.9600000000000003E-2]
[null,null,null,null,null,null,null,null,null,null,null,null,null,"ENFANT",1.6500000000000001E-2,1.89E-2,2.5530000000000001E-2,2.5499999999999998E-2]
[null,null,null,null,null,null,null,null,null,null,null,null,null,"ISOLE",2.5700000000000001E-2,2.92E-2,3.9559999999999998E-2,3.9600000000000003E-2]
[null,null,null,null,null,null,null,null,null,null,null,null,null,"FAMILLE",5.8900000000000001E-2,6.6900000000000001E-2,9.0505000000000002E-2,9.0499999999999997E-2]
[null,null,null,null,null,null,null,null,null,null,null,null,null,"UNIQUE",5.0700000000000002E-2,5.7799999999999997E-2,8.854999999999999E-2,8.8599999999999998E-2]
[null,null,null,null,null,null,null,null,null,null,null,null,null,"SOLO",2.5700000000000001E-2,2.92E-2,3.9559999999999998E-2,3.9600000000000003E-2]
[null,null,null,null,null,null,null,null,null,null,null,null,null,"DUO",4.7300000000000002E-2,5.3800000000000001E-2,7.2794999999999985E-2,7.2800000000000004E-2]
[null,null,null,null,null,null,null,null,null,null,null,null,null,"TRIBU",6.6600000000000006E-2,7.5700000000000003E-2,0.10246499999999999,0.10249999999999999]
[]
[]
[]
[]
[null,null,null,null,null,null,null,null,null,null,null,null,null,"Régime local"]
[]
[]
[]
[null,null,null,null,null,null,null,null,null,null,null,null,null,"Base conventionnelle",null,null,null,null,null,null,null,null,null,null,null,null,null,null,"Simulations"]
[null,null,null,null,null,null,null,null,null,null,null,null,null,"ADULTE",9.1999999999999998E-3,null,null,null,null,null,null,null,null,null,null,null,null,null,"PART","part employeur par tête","Salarié","Salarié","CONJOINT"]
[null,null,null,null,null,null,null,null,null,null,null,null,null,"ENFANT",6.0000000000000001E-3,null,null,null,null,null,null,null,null,"Tarif",null,"€","taux partic","Employeur","EMPLOYEUR",null,"Obligatoire","Facultatif","obligatoire","facultatif"]
[null,null,null,null,null,null,null,null,null,null,null,null,null,"ISOLE",9.1999999999999998E-3,null,null,null,null,null,null,"ADULTE",null,{"$f":"IF('Simulateur 2023 bis'!$E$14=\"Base conventionnelle\",VLOOKUP(V58,Données!$N$55:$Q$63,2,FALSE),IF(Données!$D$15=\"21\",VLOOKUP(V58,Données!$N$65:$R$73,2,FALSE),IF(Données!$D$15=\"22\",VLOOKUP(V58,Données!$N$65:$R$73,3,FALSE),IF(Données!$D$15=\"23\",VLOOKUP(V58,Données!$N$65:$R$73,4,FALSE),IF(Données!$D$15=\"24\",VLOOKUP(V58,Données!$N$65:$R$73,5,FALSE),IF(Données!$D$15=\"31\",VLOOKUP(V58,Données!$N$75:$R$83,2,FALSE),IF(Données!$D$15=\"32\",VLOOKUP(V58,Données!$N$75:$R$83,3,FALSE),IF(Données!$D$15=\"33\",VLOOKUP(V58,Données!$N$75:$R$83,4,FALSE),IF(Données!$D$15=\"34\",VLOOKUP(V58,Données!$N$75:$R$83,5,FALSE),IF(Données!$D$15=\"41\",VLOOKUP(V58,Données!$N$85:$R$93,2,FALSE),IF(Données!$D$15=\"42\",VLOOKUP(V58,Données!$N$85:$R$93,3,FALSE),IF(Données!$D$15=\"43\",VLOOKUP(V58,Données!$N$85:$R$93,4,FALSE),IF(Données!$D$15=\"44\",VLOOKUP(V58,Données!$N$85:$R$93,5,FALSE))))))))))))))","v":false},{"$f":"IF('Simulateur 2023 bis'!$E$20=\"Obligatoire\",(('Simulateur 2023 bis'!$X$10+'Simulateur 2023 bis'!$X$15)*X58),('Simulateur 2023 bis'!$X$10*X58))","v":0},{"$f":"Y58*Données!$C$26","v":0},{"$f":"Y58*Données!$C$26*'Simulateur 2023 bis'!$E$24","v":0},{"$f":"AA58","v":0},{"$f":"AB58+AB59","v":0},{"$f":"$X58*'Simulateur 2023 bis'!$E$24*$C$26","v":0},{"$f":"($X58*$C$26)-$AD58","v":0},{"$f":"($X58*$C$26)-$AD58","v":0},{"$f":"AE58","v":0},{"$f":"($X58*$C$26)","v":0}]
[null,null,null,null,null,null,null,null,null,null,null,null,null,"FAMILLE",2.1600000000000001E-2,null,null,null,null,null,null,"ENFANT",null,{"$f":"IF('Simulateur 2023 bis'!$E$14=\"Base conventionnelle\",VLOOKUP(V59,$N$55:$Q$63,2,FALSE),IF(Données!$D$15=\"21\",VLOOKUP(V59,$N$65:$R$73,2,FALSE),IF(Données!$D$15=\"22\",VLOOKUP(V59,Données!$N$65:$R$73,3,FALSE),IF(Données!$D$15=\"23\",VLOOKUP(V59,Données!$N$65:$R$73,4,FALSE),IF(Données!$D$15=\"24\",VLOOKUP(V59,Données!$N$65:$R$73,5,FALSE),IF(Données!$D$15=\"31\",VLOOKUP(V59,Données!$N$75:$R$83,2,FALSE),IF(Données!$D$15=\"32\",VLOOKUP(V59,Données!$N$75:$R$83,3,FALSE),IF(Données!$D$15=\"33\",VLOOKUP(V59,Données!$N$65:$R$73,4,FALSE),IF(Données!$D$15=\"34\",VLOOKUP(V59,Données!$N$75:$R$83,5,FALSE),IF(Données!$D$15=\"41\",VLOOKUP(V59,Données!$N$85:$R$93,2,FALSE),IF(Données!$D$15=\"42\",VLOOKUP(V59,Données!$N$85:$R$93,3,FALSE),IF(Données!$D$15=\"43\",VLOOKUP(V59,Données!$N$85:$R$93,4,FALSE),IF(Données!$D$15=\"44\",VLOOKUP(V59,Données!$N$85:$R$93,5,FALSE))))))))))))))","v":false},{"$f":"X59*'Simulateur 2023 bis'!$X$17","v":0},{"$f":"Y59*Données!$C$26","v":0},{"$f":"Y59*Données!$C$26*'Simulateur 2023 bis'!$E$24","v":0},{"$f":"IF('Simulateur 2023 bis'!$E$20=\"Obligatoire\",AA59,0)","v":0},null,{"$f":"$X59*'Simulateur 2023 bis'!$E$24*$C$26","v":0},{"$f":"($X59*$C$26)-$AD59","v":0},{"$f":"($X59*$C$26)","v":0}]
[null,null,null,null,null,null,null,null,null,null,null,null,null,"UNIQUE",1.8599999999999998E-2,null,null,null,null,null,null,"ISOLE",null,{"$f":"IF('Simulateur 2023 bis'!$E$14=\"Base conventionnelle\",VLOOKUP(V60,Données!$N$55:$Q$63,2,FALSE),IF(Données!$D$15=\"21\",VLOOKUP(V60,Données!$N$65:$R$73,2,FALSE),IF(Données!$D$15=\"22\",VLOOKUP(V60,Données!$N$65:$R$73,3,FALSE),IF(Données!$D$15=\"23\",VLOOKUP(V60,Données!$N$65:$R$73,4,FALSE),IF(Données!$D$15=\"24\",VLOOKUP(V60,Données!$N$65:$R$73,5,FALSE),IF(Données!$D$15=\"31\",VLOOKUP(V60,Données!$N$75:$R$83,2,FALSE),IF(Données!$D$15=\"32\",VLOOKUP(V60,Données!$N$75:$R$83,3,FALSE),IF(Données!$D$15=\"33\",VLOOKUP(V60,Données!$N$75:$R$83,4,FALSE),IF(Données!$D$15=\"34\",VLOOKUP(V60,Données!$N$75:$R$83,5,FALSE),IF(Données!$D$15=\"41\",VLOOKUP(V60,Données!$N$85:$R$93,2,FALSE),IF(Données!$D$15=\"42\",VLOOKUP(V60,Données!$N$85:$R$93,3,FALSE),IF(Données!$D$15=\"43\",VLOOKUP(V60,Données!$N$85:$R$93,4,FALSE),IF(Données!$D$15=\"44\",VLOOKUP(V60,Données!$N$85:$R$93,5,FALSE))))))))))))))","v":false},{"$f":"IF('Simulateur 2023 bis'!$E$20=\"Obligatoire\",(X60*'Simulateur 2023 bis'!$X$12),(X60*'Simulateur 2023 bis'!$X$10))","v":0},{"$f":"Y60*Données!$C$26","v":0},{"$f":"Y60*Données!$C$26*'Simulateur 2023 bis'!$E$24","v":0},{"$f":"AA60","v":0},{"$f":"AB60+AB61","v":0},{"$f":"$X60*'Simulateur 2023 bis'!$E$24*$C$26","v":0},{"$f":"($X60*$C$26)-$AD60","v":0},{"$f":"($X60*$C$26)-$AD60","v":0}]
[null,null,null,null,null,null,null,null,null,null,null,null,null,"SOLO",9.1999999999999998E-3,null,null,null,null,null,null,"FAMILLE",null,{"$f":"IF('Simulateur 2023 bis'!$E$14=\"Base conventionnelle\",VLOOKUP(V61,Données!$N$55:$Q$63,2,FALSE),IF(Données!$D$15=\"21\",VLOOKUP(V61,Données!$N$65:$R$73,2,FALSE),IF(Données!$D$15=\"22\",VLOOKUP(V61,Données!$N$65:$R$73,3,FALSE),IF(Données!$D$15=\"23\",VLOOKUP(V61,Données!$N$65:$R$73,4,FALSE),IF(Données!$D$15=\"24\",VLOOKUP(V61,Données!$N$65:$R$73,5,FALSE),IF(Données!$D$15=\"31\",VLOOKUP(V61,Données!$N$75:$R$83,2,FALSE),IF(Données!$D$15=\"32\",VLOOKUP(V61,Données!$N$75:$R$83,3,FALSE),IF(Données!$D$15=\"33\",VLOOKUP(V61,Données!$N$75:$R$83,4,FALSE),IF(Données!$D$15=\"34\",VLOOKUP(V61,Données!$N$75:$R$83,5,FALSE),IF(Données!$D$15=\"41\",VLOOKUP(V61,Données!$N$85:$R$93,2,FALSE),IF(Données!$D$15=\"42\",VLOOKUP(V61,Données!$N$85:$R$93,3,FALSE),IF(Données!$D$15=\"43\",VLOOKUP(V61,Données!$N$85:$R$93,4,FALSE),IF(Données!$D$15=\"44\",VLOOKUP(V61,Données!$N$85:$R$93,5,FALSE))))))))))))))","v":false},{"$f":"X61*('Simulateur 2023 bis'!$X$10-'Simulateur 2023 bis'!$X$12)","v":0},{"$f":"Y61*Données!$C$26","v":0},{"$f":"Y61*Données!$C$26*'Simulateur 2023 bis'!$E$24","v":0},{"$f":"IF('Simulateur 2023 bis'!$E$20=\"Obligatoire\",AA61,0)","v":0},null,{"$f":"$X61*'Simulateur 2023 bis'!$E$24*$C$26","v":0},{"$f":"($X61*$C$26)-$AD61","v":0},{"$f":"(X60*$C$26)-(X60*$C$26*'Simulateur 2023 bis'!$E$24)+((Données!X61-Données!X60)*Données!$C$26)","v":0}]
[null,null,null,null,null,null,null,null,null,null,null,null,null,"DUO",1.7399999999999999E-2,null,null,null,null,null,null,"UNIQUE",null,{"$f":"IF('Simulateur 2023 bis'!$E$14=\"Base conventionnelle\",VLOOKUP(V62,Données!$N$55:$Q$63,2,FALSE),IF(Données!$D$15=\"21\",VLOOKUP(V62,Données!$N$65:$R$73,2,FALSE),IF(Données!$D$15=\"22\",VLOOKUP(V62,Données!$N$65:$R$73,3,FALSE),IF(Données!$D$15=\"23\",VLOOKUP(V62,Données!$N$65:$R$73,4,FALSE),IF(Données!$D$15=\"24\",VLOOKUP(V62,Données!$N$65:$R$73,5,FALSE),IF(Données!$D$15=\"31\",VLOOKUP(V62,Données!$N$75:$R$83,2,FALSE),IF(Données!$D$15=\"32\",VLOOKUP(V62,Données!$N$75:$R$83,3,FALSE),IF(Données!$D$15=\"33\",VLOOKUP(V62,Données!$N$75:$R$83,4,FALSE),IF(Données!$D$15=\"34\",VLOOKUP(V62,Données!$N$75:$R$83,5,FALSE),IF(Données!$D$15=\"41\",VLOOKUP(V62,Données!$N$85:$R$93,2,FALSE),IF(Données!$D$15=\"42\",VLOOKUP(V62,Données!$N$85:$R$93,3,FALSE),IF(Données!$D$15=\"43\",VLOOKUP(V62,Données!$N$85:$R$93,4,FALSE),IF(Données!$D$15=\"44\",VLOOKUP(V62,Données!$N$85:$R$93,5,FALSE))))))))))))))","v":false},{"$f":"X62*'Simulateur 2023 bis'!$X$10","v":0},{"$f":"Y62*Données!$C$26","v":0},{"$f":"Y62*Données!$C$26*'Simulateur 2023 bis'!$E$24","v":0},{"$f":"IF('Simulateur 2023 bis'!$E$20=\"Obligatoire\",AA62,\"Impossible\")","v":"Impossible"},{"$f":"AB62","v":"Impossible"},{"$f":"$X62*'Simulateur 2023 bis'!$E$24*$C$26","v":0},{"$f":"IF('Simulateur 2023 bis'!$E$20=\"Obligatoire\",(($X62*$C$26)-$AD62),\"impossible\")","v":"impossible"}]
[null,null,null,null,null,null,null,null,null,null,null,null,null,"TRIBU",2.47E-2,null,null,null,null,null,null,"SOLO",null,{"$f":"IF('Simulateur 2023 bis'!$E$14=\"Base conventionnelle\",VLOOKUP(V63,Données!$N$55:$Q$63,2,FALSE),IF(Données!$D$15=\"21\",VLOOKUP(V63,Données!$N$65:$R$73,2,FALSE),IF(Données!$D$15=\"22\",VLOOKUP(V63,Données!$N$65:$R$73,3,FALSE),IF(Données!$D$15=\"23\",VLOOKUP(V63,Données!$N$65:$R$73,4,FALSE),IF(Données!$D$15=\"24\",VLOOKUP(V63,Données!$N$65:$R$73,5,FALSE),IF(Données!$D$15=\"31\",VLOOKUP(V63,Données!$N$75:$R$83,2,FALSE),IF(Données!$D$15=\"32\",VLOOKUP(V63,Données!$N$75:$R$83,3,FALSE),IF(Données!$D$15=\"33\",VLOOKUP(V63,Données!$N$75:$R$83,4,FALSE),IF(Données!$D$15=\"34\",VLOOKUP(V63,Données!$N$75:$R$83,5,FALSE),IF(Données!$D$15=\"41\",VLOOKUP(V63,Données!$N$85:$R$93,2,FALSE),IF(Données!$D$15=\"42\",VLOOKUP(V63,Données!$N$85:$R$93,3,FALSE),IF(Données!$D$15=\"43\",VLOOKUP(V63,Données!$N$85:$R$93,4,FALSE),IF(Données!$D$15=\"44\",VLOOKUP(V63,Données!$N$85:$R$93,5,FALSE))))))))))))))","v":false},{"$f":"IF('Simulateur 2023 bis'!$E$20=\"Obligatoire\",(X63*'Simulateur 2023 bis'!$X$12),(X63*'Simulateur 2023 bis'!$X$10))","v":0},{"$f":"Y63*Données!$C$26","v":0},{"$f":"Y63*Données!$C$26*'Simulateur 2023 bis'!$E$24","v":0},{"$f":"AA63","v":0},{"$f":"IF(Z63<0,\"champs à renseigner\",AB63+AB64+AB65)","v":0},{"$f":"$X63*'Simulateur 2023 bis'!$E$24*$C$26","v":0},{"$f":"(X63*$C$26)-AD63","v":0},{"$f":"(X63*$C$26)-AD63","v":0}]
[null,null,null,null,null,null,null,null,null,null,null,null,null,null,"jusque 35","36-45","46-55","Plus 56 ans",null,null,null,"DUO",null,{"$f":"IF('Simulateur 2023 bis'!$E$14=\"Base conventionnelle\",VLOOKUP(V64,Données!$N$55:$Q$63,2,FALSE),IF(Données!$D$15=\"21\",VLOOKUP(V64,Données!$N$65:$R$73,2,FALSE),IF(Données!$D$15=\"22\",VLOOKUP(V64,Données!$N$65:$R$73,3,FALSE),IF(Données!$D$15=\"23\",VLOOKUP(V64,Données!$N$65:$R$73,4,FALSE),IF(Données!$D$15=\"24\",VLOOKUP(V64,Données!$N$65:$R$73,5,FALSE),IF(Données!$D$15=\"31\",VLOOKUP(V64,Données!$N$75:$R$83,2,FALSE),IF(Données!$D$15=\"32\",VLOOKUP(V64,Données!$N$75:$R$83,3,FALSE),IF(Données!$D$15=\"33\",VLOOKUP(V64,Données!$N$75:$R$83,4,FALSE),IF(Données!$D$15=\"34\",VLOOKUP(V64,Données!$N$75:$R$83,5,FALSE),IF(Données!$D$15=\"41\",VLOOKUP(V64,Données!$N$85:$R$93,2,FALSE),IF(Données!$D$15=\"42\",VLOOKUP(V64,Données!$N$85:$R$93,3,FALSE),IF(Données!$D$15=\"43\",VLOOKUP(V64,Données!$N$85:$R$93,4,FALSE),IF(Données!$D$15=\"44\",VLOOKUP(V64,Données!$N$85:$R$93,5,FALSE))))))))))))))","v":false},{"$f":"X64*'Simulateur 2023 bis'!$X$23","v":0},{"$f":"Y64*'Simulateur 2023 bis'!$X$23*Données!$C$26","v":0},{"$f":"Y64*Données!$C$26*'Simulateur 2023 bis'!$E$24","v":0},{"$f":"IF('Simulateur 2023 bis'!$E$20=\"Obligatoire\",AA64,0)","v":0},null,{"$f":"$X64*'Simulateur 2023 bis'!$E$24*$C$26","v":0},{"$f":"(X64*$C$26)-AD64","v":0},{"$f":"AE63+((X64-X63)*$C$26)","v":0}]
[null,null,null,null,null,null,null,null,null,null,null,null,null,"Base améliorée 1",null,null,null,null,null,null,null,"TRIBU",null,{"$f":"IF('Simulateur 2023 bis'!$E$14=\"Base conventionnelle\",VLOOKUP(V65,Données!$N$55:$Q$63,2,FALSE),IF(Données!$D$15=\"21\",VLOOKUP(V65,Données!$N$65:$R$73,2,FALSE),IF(Données!$D$15=\"22\",VLOOKUP(V65,Données!$N$65:$R$73,3,FALSE),IF(Données!$D$15=\"23\",VLOOKUP(V65,Données!$N$65:$R$73,4,FALSE),IF(Données!$D$15=\"24\",VLOOKUP(V65,Données!$N$65:$R$73,5,FALSE),IF(Données!$D$15=\"31\",VLOOKUP(V65,Données!$N$75:$R$83,2,FALSE),IF(Données!$D$15=\"32\",VLOOKUP(V65,Données!$N$75:$R$83,3,FALSE),IF(Données!$D$15=\"33\",VLOOKUP(V65,Données!$N$75:$R$83,4,FALSE),IF(Données!$D$15=\"34\",VLOOKUP(V65,Données!$N$75:$R$83,5,FALSE),IF(Données!$D$15=\"41\",VLOOKUP(V65,Données!$N$85:$R$93,2,FALSE),IF(Données!$D$15=\"42\",VLOOKUP(V65,Données!$N$85:$R$93,3,FALSE),IF(Données!$D$15=\"43\",VLOOKUP(V65,Données!$N$85:$R$93,4,FALSE),IF(Données!$D$15=\"44\",VLOOKUP(V65,Données!$N$85:$R$93,5,FALSE))))))))))))))","v":false},{"$f":"X65*'Simulateur 2023 bis'!$X$20","v":0},{"$f":"Y65*'Simulateur 2023 bis'!$X$23*Données!$C$26","v":0},{"$f":"Y65*Données!$C$26*'Simulateur 2023 bis'!$E$24","v":0},{"$f":"IF('Simulateur 2023 bis'!$E$20=\"Obligatoire\",AA65,0)","v":0},null,{"$f":"$X65*'Simulateur 2023 bis'!$E$24*$C$26","v":0},{"$f":"(X65*$C$26)-AD65","v":0},{"$f":"AE63+((X65-X63)*$C$26)","v":0}]
[null,null,null,null,null,null,null,null,null,null,null,null,null,"ADULTE",1.14E-2,1.29E-2,1.4800000000000001E-2,1.7399999999999999E-2]
[null,null,null,null,null,null,null,null,null,null,null,null,null,"ENFANT",7.4000000000000003E-3,8.3999999999999995E-3,9.7000000000000003E-3,1.1299999999999999E-2]
[null,null,null,null,null,null,null,null,null,null,null,null,null,"ISOLE",1.14E-2,1.29E-2,1.4800000000000001E-2,1.7399999999999999E-2]
[null,null,null,null,null,null,null,null,null,null,null,null,null,"FAMILLE",2.5899999999999999E-2,2.9499999999999998E-2,3.39E-2,3.9800000000000002E-2]
[null,null,null,null,null,null,null,null,null,null,null,null,null,"UNIQUE",2.5499999999999998E-2,2.9000000000000001E-2,3.3399999999999999E-2,3.9199999999999999E-2]
[null,null,null,null,null,null,null,null,null,null,null,null,null,"SOLO",1.14E-2,1.29E-2,1.4800000000000001E-2,1.7399999999999999E-2]
[null,null,null,null,null,null,null,null,null,null,null,null,null,"DUO",2.1000000000000001E-2,2.3900000000000001E-2,2.75E-2,3.2300000000000002E-2]
[null,null,null,null,null,null,null,null,null,null,null,null,null,"TRIBU",2.9499999999999998E-2,3.3500000000000002E-2,3.85E-2,4.5199999999999997E-2]
[null,null,null,null,null,null,null,null,null,null,null,null,null,null,"jusque 35","36-45","46-55","Plus 56 ans"]
[null,null,null,null,null,null,null,null,null,null,null,null,null,"Base améliorée 2","BA2"]
[null,null,null,null,null,null,null,null,null,null,null,null,null,"ADULTE",1.43E-2,1.6199999999999999E-2,1.8599999999999998E-2,2.1899999999999999E-2]
[null,null,null,null,null,null,null,null,null,null,null,null,null,"ENFANT",9.1000000000000004E-3,1.03E-2,1.18E-2,1.3899999999999999E-2]
[null,null,null,null,null,null,null,null,null,null,null,null,null,"ISOLE",1.43E-2,1.6199999999999999E-2,1.8599999999999998E-2,2.1899999999999999E-2]
[null,null,null,null,null,null,null,null,null,null,null,null,null,"FAMILLE",3.2599999999999997E-2,3.6999999999999998E-2,4.2599999999999999E-2,0.05]
[null,null,null,null,null,null,null,null,null,null,null,null,null,"UNIQUE",3.1899999999999998E-2,3.6200000000000003E-2,4.1599999999999998E-2,4.8899999999999999E-2]
[null,null,null,null,null,null,null,null,null,null,null,null,null,"SOLO",1.43E-2,1.6199999999999999E-2,1.8599999999999998E-2,2.1899999999999999E-2]
[null,null,null,null,null,null,null,null,null,null,null,null,null,"DUO",2.6100000000000002E-2,2.9700000000000001E-2,3.4200000000000001E-2,4.0099999999999997E-2]
[null,null,null,null,null,null,null,null,null,null,null,null,null,"TRIBU",3.6900000000000002E-2,4.19E-2,4.8099999999999997E-2,5.6599999999999998E-2]
[]
[null,null,null,null,null,null,null,null,null,null,null,null,null,"Base améliorée 3","BA2"]
[null,null,null,null,null,null,null,null,null,null,null,null,null,"ADULTE",2.1499999999999998E-2,2.4400000000000002E-2,2.81E-2,3.2800000000000003E-2]
[null,null,null,null,null,null,null,null,null,null,null,null,null,"ENFANT",1.37E-2,1.5599999999999999E-2,1.7899999999999999E-2,2.1100000000000001E-2]
[null,null,null,null,null,null,null,null,null,null,null,null,null,"ISOLE",2.1499999999999998E-2,2.4400000000000002E-2,2.81E-2,3.2800000000000003E-2]
[null,null,null,null,null,null,null,null,null,null,null,null,null,"FAMILLE",4.8899999999999999E-2,5.5599999999999997E-2,6.3899999999999998E-2,7.51E-2]
[null,null,null,null,null,null,null,null,null,null,null,null,null,"UNIQUE",4.7899999999999998E-2,5.4399999999999997E-2,6.2600000000000003E-2,7.3400000000000007E-2]
[null,null,null,null,null,null,null,null,null,null,null,null,null,"SOLO",2.1499999999999998E-2,2.4400000000000002E-2,2.81E-2,3.2800000000000003E-2]
[null,null,null,null,null,null,null,null,null,null,null,null,null,"DUO",3.9300000000000002E-2,4.4699999999999997E-2,5.1400000000000001E-2,6.0299999999999999E-2]
[null,null,null,null,null,null,null,null,null,null,null,null,null,"TRIBU",5.5399999999999998E-2,6.2899999999999998E-2,7.2300000000000003E-2,8.48E-2]